Cogmind - Beta 16 @@@ ROGUE MODE // 2025.11.26 @ 20:07:53 Player: GiggleBox Result: Destroyed by Striker with Compact Linear Accelerator Performance ------------- Evolutions (8) 4000 Regions Visited (17) 3400 Robots Destroyed (265) 1325 Value Destroyed (12603) 12603 Prototype IDs (36) 720 Alien Tech Used (2) 400 Bonus (9914) 9914 TOTAL SCORE: 32362 Bonus ------- High Alert Combat Kills 3522 Follower Combat Kills 2099 Registered with UFD 300 Met Optimus in HQ 500 Built Enhanced Grunts 300 A7 Reached Mainframe 300 Met R17 at Cetus 500 Met R17 at Research 2000 Met Optimus at Protoforge 1000 Friendly Fire -607 Cogmind --------- Core Integrity 0/1450 Matter 300/300 Energy 413/415 System Corruption 22% Temperature Cool (5) Movement Flying (31) Location -2/Protoforge Parts ------- > --- POWER (2) -------- Antimatter Reactor Light Quantum Reactor > --- PROPULSION (8) --- Xenon Bombardment Thruster Xenon Bombardment Thruster Impulse Thruster Array Impulse Thruster Array Impulse Thruster Array > --- UTILITY (9) ------ Experimental Heat Sink Medium Storage Unit Spectral Analyzer Experimental Targeting Computer Experimental Core Analyzer Experimental Armor Integrity Analyzer Makeshift Core Shielding Experimental EM Shield > --- WEAPON (4) ------- Plasma Lance > --- INVENTORY (10) --- UFD Drillbomb Peak State ------------ > --- POWER ------------ Hybrid Antimatter Reactor Improved Quantum Reactor > --- PROPULSION ------- Overtuned Armored Exoskeleton Biometal Leg Biometal Leg Enhanced Biometal Leg Heavy Shield Leg > --- UTILITY ---------- Scrap Suit Experimental Heat Sink Medium Storage Unit Spectral Analyzer Experimental Core Analyzer Experimental Armor Integrity Analyzer Makeshift Heavy Armor Plating > --- WEAPON ----------- Hypervelocity Multirail Concept XC Strikerail Concept XC Strikerail Concept XC Strikerail > --- INVENTORY -------- Matter Compressor Experimental Kinecellerator Advanced Transmission Jammer Advanced Phase Shifter Makeshift Core Shielding Experimental EM Shield Improved Remote Shield Helical Railgun Helical Railgun Z-bomb Delivery System [Rating: 198] Favorites ----------- Power Cold Fusion Reactor Engine Ion Engine Power Core Micro Fission Core Reactor Cold Fusion Reactor Propulsion Light Treads Treads Light Treads Leg Biometal Leg Wheel Armored Huge Wheel Flight Unit Nuclear Pulse Array Utility High-capacity Storage Unit Device Improved Trap Scanner Storage High-capacity Storage Unit Processor Advanced Targeting Computer Hackware Improved Hacking Suite Protection Centrium Medium Armor Plating Weapon Improved Light Cannon Energy Gun Improved Heavy Laser Energy Cannon Particle Cannon Ballistic Gun Improved Assault Rifle Ballistic Cannon Improved Light Cannon Launcher Rocket Launcher Impact Weapon Shock Maul Piercing Weapon Plasma Lance Build | -11 -10 -9 -9 -9 -9 -6 -5 -5 -5 -5 -5 -4 -3 -3 -2 -2 -2 ------- Run | Yrd Mat Mat Sto Rec Scr Fac Fac Ext Cet Arc Hub Fac Res Qua Res Tes Frg Slots Evolved 16 | . . 2 . . . 6 2 . . . . 2 2 . 2 . . Power 1 | . . . . . . . 1 . . . . . . . . . . Propulsion 6 | . . 1 . . . 3 . . . . . 1 1 . . . . Utility 7 | . . 1 . . . 3 1 . . . . 1 . . 1 . . Weapon 2 | . . . . . . . . . . . . . 1 . 1 . . Parts Attached 212 | 8 12 25 2 4 6 17 22 6 6 . 1 9 14 4 13 14 49 Power 27 | 1 . 1 1 . . 1 5 2 . . . 1 4 . 3 2 6 Engine 7 | 1 . 1 . . . 1 3 1 . . . . . . . . . Core 4 | . . . . . . . 2 1 . . . . . . . . 1 Reactor 16 | . . . 1 . . . . . . . . 1 4 . 3 2 5 Propulsion 63 | 2 1 9 . 3 5 4 9 . . . . 3 7 . . 3 17 Treads 24 | 2 1 9 . 3 5 4 . . . . . . . . . . . Leg 10 | . . . . . . . . . . . . . . . . . 10 Wheel 3 | . . . . . . . 3 . . . . . . . . . . Hover . | . . . . . . . . . . . . . . . . . . Flight 26 | . . . . . . . 6 . . . . 3 7 . . 3 7 Utility 68 | 2 4 5 . . 1 8 5 3 4 . 1 4 2 2 6 6 15 Device 41 | 1 2 . . . 1 3 5 2 3 . 1 3 1 2 5 5 7 Storage 5 | 1 2 . . . . 1 . . . . . . 1 . . . . Processor 11 | . . 1 . . . 2 . 1 . . . . . . . 1 6 Hackware 3 | . . 2 . . . 1 . . . . . . . . . . . Protection 8 | . . 2 . . . 1 . . 1 . . 1 . . 1 . 2 Artifact . | . . . . . . . . . . . . . . . . . . Weapon 54 | 3 7 10 1 1 . 4 3 1 2 . . 1 1 2 4 3 11 Energy Gun 2 | 1 . . 1 . . . . . . . . . . . . . . Energy Cannon 12 | . 3 1 . . . 1 1 . 1 . . 1 . 1 2 1 . Ballistic Gun 27 | 2 1 6 . 1 . 3 . 1 1 . . . 1 . . 1 10 Ballistic Cannon 3 | . . 2 . . . . 1 . . . . . . . . . . Launcher 5 | . 3 . . . . . . . . . . . . . 1 1 . Special Weapon . | . . . . . . . . . . . . . . . . . . Impact Weapon 3 | . . 1 . . . . 1 . . . . . . . 1 . . Slashing Weapon . | . . . . . . . . . . . . . . . . . . Piercing Weapon 2 | . . . . . . . . . . . . . . 1 . . 1 Special Melee Weapon . | . . . . . . . . . . . . . . . . . . Unidentified Prototypes 29 | . . . 2 . . . 2 . 3 . . . 3 1 1 6 11 Parts Lost 71 | . 1 . . 2 . 8 4 2 1 . . 1 5 . 5 11 31 Power 13 | . . . . . . 1 3 1 . . . . 1 . 1 2 4 Propulsion 25 | . 1 . . 1 . 5 1 . . . . . 2 . . 4 11 Utility 20 | . . . . . . . . 1 1 . . 1 1 . 4 4 8 Weapon 13 | . . . . 1 . 2 . . . . . . 1 . . 1 8 Highest Loss Streak 16 | . 1 . . 1 . 6 1 1 1 . . 1 3 . 3 4 16 To Critical Strikes 4 | . . . . . . 1 . . . . . . . . . . 3 Average Backups 13 | 1 13 19 20 19 19 20 12 6 6 7 7 7 8 9 8 8 7 Power 1 | . 1 1 1 2 2 1 . . . . . . . . . . . Propulsion 2 | . 1 4 4 3 3 1 2 3 3 3 3 2 2 2 2 1 . Utility 5 | . 5 6 7 7 7 8 4 3 3 3 3 2 3 4 3 3 5 Weapon 4 | . 4 6 7 6 6 8 5 . . 1 1 1 1 1 2 2 1 Tool/Special . | . . . . . . . . . . . . . . . . . . Unused Backups 37 | . 4 13 1 . 1 1 10 1 . . . . 1 1 . 1 3 Power 3 | . 1 2 . . . . . . . . . . . . . . . Propulsion 14 | . . 5 1 . 1 . 5 . . . . . 1 1 . . . Utility 11 | . 2 3 . . . 1 2 1 . . . . . . . . 2 Weapon 9 | . 1 3 . . . . 3 . . . . . . . . 1 1 Tool/Special . | . . . . . . . . . . . . . . . . . . Average Slot Usage (%) 89 | . 99 99 100 99 100 93 80 85 88 88 88 83 83 82 77 64 71 Engine 3 | . 14 11 1 . . 2 7 3 . . . . . . . . . Core 1 | . . . . . . . 2 5 11 11 11 5 1 . . . . Reactor 4 | . . . 9 11 11 3 . . . . . 4 7 9 7 6 6 Treads 17 | . 27 33 33 32 33 34 . . . . . . . . . . . Leg 1 | . . . . . . . . . . . . . . . . . 13 Flight 6 | . . . . . . . 8 23 23 23 23 21 23 23 21 20 5 Device 10 | . 14 12 . . 1 12 18 17 17 17 17 14 13 18 17 18 7 Storage 8 | . 14 11 11 11 11 6 5 5 5 5 5 5 4 4 4 4 4 Processor 8 | . . . 11 11 11 12 8 8 11 11 11 10 9 4 4 4 13 Hackware 4 | . . 2 11 11 9 4 5 5 5 5 5 5 4 4 4 2 . Protection 1 | . . 6 . . . . . . . . . 4 4 4 7 . 3 Energy Cannon 2 | . 13 2 . . . . . 5 5 5 5 5 2 3 4 1 . Ballistic Gun 7 | . 10 15 . 1 11 8 1 . 4 . . . 3 2 . . 12 Ballistic Cannon 5 | . . 3 21 20 11 2 1 . . . . . . . . . . Impact Weapon 1 | . . . . . . . 4 4 . 4 5 4 4 3 4 4 . Peak Build Rating 198 | 7 11 20 28 28 39 65 94 96 101 101 99 118 141 159 152 163 198 Average Rating 68 | 5 9 16 24 26 32 56 79 91 97 99 97 111 132 141 141 126 161 On Entrance 72 | . 7 10 20 25 28 39 45 93 94 101 99 97 118 141 140 131 108 Avg Prop Armor Cover (%) 3 | . . . . . . . 10 7 . . . . 1 . . 7 3 Naked Turns . | . . . . . . . . . . . . . . . . . . Heaviest Build 110 | 13 52 63 60 60 64 110 101 40 40 40 37 51 59 60 65 68 101 Greatest Support 236 | 40 40 63 63 69 90 166 84 42 42 42 42 56 65 62 67 67 236 Greatest Overweight (x) 6 | . 1 1 . . . 1 2 1 . . . . 1 . 1 6 2 Average Overweight (x) . | . . . . . . . . . . . . . . . . . . Largest Inventory Capacity 25 | 8 20 20 20 20 20 25 25 8 8 8 8 8 10 10 10 10 10 Average Capacity 15 | 7 16 20 20 20 20 24 14 8 8 8 8 8 8 10 10 10 10 Most Carried 23 | 2 16 20 20 20 20 23 21 8 8 8 8 8 10 10 10 10 10 Average Carried 14 | 1 13 19 19 19 19 20 13 7 7 8 8 7 8 9 9 8 8 Final Capacity 25 | 8 20 20 20 20 20 25 8 8 8 8 8 8 10 10 10 10 10 Final Carried 21 | 2 16 20 20 19 19 21 7 8 8 8 8 7 10 10 10 8 10 Scrap Suit Usage (%) 5 | . . . . . . . . . . . . . . . . . 40 Parts Cannibalized 8 | . . . . . . . . . . . . . . . . . 8 Class Distribution -------------------- 21% | Mutant 20% | Commander-Mutant 13% | Scavenger-Mutant 11% | Sprinter 8% | Scavenger-Gunner 4% | Commander-Sprinter 4% | Scavenger-Sprinter 3% | Assassin 3% | Ninja Dominant Class ---------------- Mutant | -10/Materials Scavenger-Mutant | -9/Materials Mutant | -9/Storage Commander-Mutant | -9/Recycling Commander-Mutant | -9/Scraptown Commander-Skirmisher | -6/Factory Assassin | -5/Factory Commander-Sprinter | -5/Extension Commander-Sprinter | -5/Cetus Sprinter | -5/Archives Sprinter | -5/Hub_04(d) Sprinter | -4/Factory Sprinter | -3/Research Scavenger-Sprinter | -3/Quarantine Scientist-Sprinter | -2/Research Sprinter | -2/Testing Scavenger-Gunner | -2/Protoforge Resources | -11 -10 -9 -9 -9 -9 -6 -5 -5 -5 -5 -5 -4 -3 -3 -2 -2 -2 ----------- Run | Yrd Mat Mat Sto Rec Scr Fac Fac Ext Cet Arc Hub Fac Res Qua Res Tes Frg Matter Collected 9307 | 297 603 912 397 275 32 242 898 171 89 20 . 130 262 27 30 424 4498 Remotely . | . . . . . . . . . . . . . . . . . . Salvage Created 12427 | 101 589 1721 505 343 . 497 716 908 137 36 . 304 403 27 49 174 5917 Parts 612 | 6 39 107 29 16 . 31 23 19 4 . . 6 7 . 3 1 321 Haulers Intercepted 15 | . 2 5 4 . . . 1 1 . . . 1 1 . . . . Recyclers Shooed 9 | . . 3 3 . . . 1 1 . . . . 1 . . . . Parts Field Recycled . | . . . . . . . . . . . . . . . . . . Retrieved Matter . | . . . . . . . . . . . . . . . . . . Parts Self-Destructed . | . . . . . . . . . . . . . . . . . . Prevented . | . . . . . . . . . . . . . . . . . . Parts Restored . | . . . . . . . . . . . . . . . . . . Kills | -11 -10 -9 -9 -9 -9 -6 -5 -5 -5 -5 -5 -4 -3 -3 -2 -2 -2 ------- Run | Yrd Mat Mat Sto Rec Scr Fac Fac Ext Cet Arc Hub Fac Res Qua Res Tes Frg Combat Hostiles Destroyed 195 | . 13 30 8 11 . 12 8 12 3 . . 2 . . . 5 91 Melee 6 | . . . . . . . . 4 . . . . . . . . 2 Guns 109 | . 4 15 . . . 2 1 . 1 . . . . . . . 86 Cannons 49 | . 4 13 8 11 . 6 2 2 1 . . 2 . . . . . AOE 24 | . 5 2 . . . 4 5 . . . . . . . . 5 3 Classes Destroyed 24 | 2 6 3 1 5 . . . 1 . . . . . . . . 6 Worker 8 | . . 1 1 . . . 4 . . . . . . 1 . 1 . Builder 3 | . . . 1 . . . 1 . . . . . . . 1 . . Tunneler 5 | 2 . . . . . . 1 . . . . 1 1 . . . . Hauler 15 | . 2 5 4 . . . 1 1 . . . 1 1 . . . . Recycler 12 | 1 . 3 1 1 . . 2 1 . . . . 2 . . 1 . Mechanic 2 | . 1 . . . . . . . . . . . . . . . 1 Operator 13 | . 1 4 2 . . 1 . 1 . 1 . . . . 2 1 . Drone 6 | . . . . . . . . . . . . . . . . . 6 Watcher 11 | . 3 2 . . . . 1 1 1 . . 1 1 . . . 1 Swarmer 40 | . 3 7 . 1 . 4 4 1 . . . . . . . 5 15 Saboteur 1 | . . . . . . . . . . . . . . . . . 1 Grunt 51 | . 10 14 2 2 . 4 . 7 . . . 2 . . . . 10 Brawler 8 | . . 1 . . . . . . . . . . . . . . 7 Duelist 2 | . . . . 1 . . . . . . . . . . . . 1 Protector 8 | . . . . 1 . . . . . . . . . . . . 7 Sentry 19 | . . 8 6 3 . 1 . 1 . . . . . . . . . Demolisher 1 | . . . . 1 . . . . . . . . . . . . . Specialist 2 | . . . . . . . . . . . . . . . . . 2 Hunter 9 | . . . . 1 . 2 . . . . . . . . . . 6 Programmer 15 | . . . . 1 . 1 4 . . . . . . . . . 9 Behemoth 1 | . . . . . . . . 1 . . . . . . . . . Cetus Guard 3 | . . . . . . . . . 3 . . . . . . . . Hotshot 9 | . . . . . . . . . . . . . . . . . 9 Striker 9 | . . . . . . . . . . . . . . . . . 9 Executioner 9 | . . . . . . . . . . . . . . . . . 9 Scraphulk 1 | . . . . . . . . . . . . . . . . . 1 Butcher 2 | . . . . . . . . 2 . . . . . . . . . Best Kill Streak 21 | 3 3 6 2 4 . 7 6 4 3 1 . 2 2 1 1 6 21 Combat Bots Only 21 | . 3 5 2 4 . 7 4 3 2 . . 2 . . . 5 21 Max Kills in Single Turn 5 | 1 2 2 1 2 . 4 3 1 2 1 . 1 1 1 1 5 5 Gunslinging 2 | . . 1 . . . . . . . . . . . . . . 2 Exploded 5 | . 2 2 . . . 4 2 . . . . . . . . 5 3 Melee 1 | . . . . . . . . 1 . . . . . . . . 1 Uniques/NPCs Destroyed . | . . . . . . . . . . . . . . . . . . Combat | -11 -10 -9 -9 -9 -9 -6 -5 -5 -5 -5 -5 -4 -3 -3 -2 -2 -2 -------- Run | Yrd Mat Mat Sto Rec Scr Fac Fac Ext Cet Arc Hub Fac Res Qua Res Tes Frg Hostile Shots Fired 1424 | . 40 97 21 55 . 163 88 30 11 3 . 84 141 10 81 118 482 Missed 637 | . 10 29 5 15 . 56 35 17 4 1 . 51 99 6 48 79 182 Deflected 6 | . . . . . . . . . . . . . . . . . 6 Hits 787 | . 30 68 16 40 . 107 53 13 7 2 . 33 42 4 33 39 300 Melee 10 | . . . . . . . . . . . . . . . . . 10 Projectile 777 | . 30 68 16 40 . 107 53 13 7 2 . 33 42 4 33 39 290 AOE 4 | . . . . 3 . . 1 . . . . . . . . . . Critical Strikes 31 | . . 1 . 2 . 3 1 . 1 . . 2 3 1 3 4 10 Actively Blocked 3 | . . . . . . . . . . . . . . . 2 . 1 Part Disruptions 1 | . . . . . . . . . . . . . . . . . 1 Damage Taken 17110 | . 467 813 207 652 . 1800 1233 181 242 49 . 530 974 87 869 1178 7828 Core 2325 | . 56 55 33 37 . 241 158 58 15 26 . 62 73 47 117 305 1042 Absorbed by Shields 216 | . . . . 56 . 58 . 87 15 . . . . . . . . Redirected to Shielding 163 | . . . . . . . . . . . . . . . 108 . 55 Ignored by Resistances 81 | . . . . . . . 64 . . . . . . . . . 17 Regen/Repaired (Parts) 72 | . . . . . . . . . . . . . . . . . 72 Core Remaining (%) 82 | 100 77 . . . 68 71 . . . . 74 94 . 90 . . . Volleys Fired 640 | 13 48 108 32 29 . 33 41 18 16 2 . 23 16 10 42 19 190 Largest 4 | 2 2 2 2 2 . 2 2 2 2 1 . 2 2 1 1 1 4 Hottest 180 | 60 136 136 66 66 . 150 150 115 125 90 . 180 123 90 120 120 158 Shots Fired 1253 | 26 90 198 65 57 . 62 59 24 19 2 . 28 31 10 42 19 521 Gun 826 | 26 63 117 . 4 . 39 29 6 6 . . . 16 . . . 520 Cannon 409 | . 23 76 65 53 . 22 24 18 13 2 . 28 15 10 42 18 . Launcher 18 | . 4 5 . . . 1 6 . . . . . . . . 1 1 Special . | . . . . . . . . . . . . . . . . . . Kinetic 920 | 17 36 143 65 57 . 37 17 6 6 . . . 16 . . . 520 Thermal 315 | 9 50 50 . . . 24 36 18 13 2 . 28 15 10 42 18 . Explosive 18 | . 4 5 . . . 1 6 . . . . . . . . 1 1 Electromagnetic . | . . . . . . . . . . . . . . . . . . Robot Hit Streak 25 | 4 9 18 20 11 . 25 10 11 10 7 . 3 2 . . . 16 Robot Miss Streak 11 | 2 4 2 1 3 . 2 3 1 4 . . 2 3 . 2 . 11 Penetration Max 4 | . . . . . . 1 . . 1 . . . . . . . 4 Secondary Targets 30 | . 1 2 . . . . 1 . . . . . . . . . 26 Max Gunslinging Chain 2 | . 1 1 . . . . 1 . . . . . . . . . 2 Shots Hit Robots 795 | 17 50 121 50 44 . 49 44 33 13 3 . 12 8 1 2 4 344 Core Hits 406 | 6 29 59 15 21 . 27 13 10 4 1 . 5 3 . 2 3 208 Critical Kills 63 | . 2 2 . . . . . 1 1 . . 1 . . . . 56 Critical Parts Destroyed 95 | . . 2 . . . 3 6 4 . 1 . 2 . . 1 2 74 Critical Strikes 172 | . 2 4 2 6 . 4 7 5 1 1 . 3 . . 1 2 134 Burn 1 | . . . . . . . 1 . . . . . . . . . . Meltdown 2 | . 1 . . . . . . 1 . . . . . . . . . Destroy 142 | . 1 4 . . . 3 . . 1 . . . . . . . 133 Blast 9 | . . . 2 6 . 1 . . . . . . . . . . . Smash 18 | . . . . . . . 6 4 . 1 . 3 . . 1 2 1 Melee Attacks 165 | . . 3 11 . . 1 56 16 . 1 2 18 13 6 10 15 13 Impact 161 | . . 3 11 . . 1 56 16 . 1 2 18 13 6 10 15 9 Slashing . | . . . . . . . . . . . . . . . . . . Piercing 4 | . . . . . . . . . . . . . . . . . 4 Sneak Attacks 25 | . . . . . . . 6 7 . 1 . 2 2 1 1 3 2 Combat Hostiles 1 | . . . . . . . . 1 . . . . . . . . . Follow-up Attacks . | . . . . . . . . . . . . . . . . . . Damage Inflicted 28285 | 157 1165 2332 1158 1046 . 1386 2497 1936 492 182 . 607 731 131 253 1577 12635 Guns 13998 | 157 290 1178 . 64 . 459 500 73 134 . . . 117 . . . 11026 Cannons 5616 | . 332 949 1084 913 . 551 354 534 358 95 . 294 152 . . . . Explosions 4345 | . 507 134 . . . 366 672 . . . . . 121 . 48 1210 1287 Melee 4051 | . . . . . . . 971 1329 . 87 . 313 341 131 205 367 307 Ramming 275 | . 36 71 74 69 . 10 . . . . . . . . . . 15 Kinetic 15599 | 88 145 1403 1084 977 . 378 174 73 134 . . . 117 . . . 11026 Thermal 4439 | 69 641 724 . . . 771 680 534 358 95 . 294 273 . . . . Explosive 3921 | . 343 134 . . . 227 672 . . . . . . . 48 1210 1287 Electromagnetic . | . . . . . . . . . . . . . . . . . . Impact 3922 | . . . . . . . 971 1329 . 87 . 313 341 131 205 367 178 Slashing . | . . . . . . . . . . . . . . . . . . Piercing 129 | . . . . . . . . . . . . . . . . . 129 Highest Corruption 22 | . 2 4 4 4 . 1 1 . . . 2 . 4 5 6 17 22 Average Corruption 6 | . 1 3 4 4 . 1 1 . . . 2 . 3 4 3 9 18 Corruption Purged 1 | . . . . . . . 1 . . . . . . . . . . Corruption Blocked . | . . . . . . . . . . . . . . . . . . Effects 270 | . 15 32 28 22 . 3 2 . . . 1 . 14 1 3 15 134 Message Errors 63 | . 4 8 6 6 . . 1 . . . . . 5 . 3 3 27 Matter Fused 59 | . 3 6 6 3 . . . . . . . . 6 . . 7 28 Heat Flow Errors 27 | . 4 5 2 5 . . . . . . 1 . . 1 . 2 7 Energy Discharges 27 | . 2 4 3 2 . 2 . . . . . . 1 . . . 13 Parts Rejected 4 | . . . . . . . . . . . . . . . . . 4 Parts Fused 3 | . . 1 . . . 1 . . . . . . . . . . 1 Data Loss (minor) 31 | . 2 6 6 4 . . 1 . . . . . 2 . . . 10 Data Loss (major) 11 | . . . 2 1 . . . . . . . . . . . . 8 Misfires 2 | . . 1 1 . . . . . . . . . . . . . . Alerts 5 | . . . 2 . . . . . . . . . . . . . 3 Misdirections 10 | . . . . . . . . . . . . . . . . 3 7 Weapon Failures 28 | . . 1 . 1 . . . . . . . . . . . . 26 Overload Shots . | . . . . . . . . . . . . . . . . . . Overflow Damage 3072 | . 59 16 13 20 . 72 805 777 . 87 . 165 236 91 123 439 169 Projectiles 88 | . . 16 11 20 . . 29 3 . . . . 9 . . . . Explosions 432 | . 59 . . . . 72 29 . . . . . 51 . . 138 83 Melee 2552 | . . . 2 . . . 747 774 . 87 . 165 176 91 123 301 86 Knockbacks 25 | . . . 7 3 . 1 1 7 . . . . 1 . 1 3 1 Impact 16 | . . . 2 1 . . 1 6 . . . . 1 . 1 3 1 Kinetic 6 | . . . 3 2 . 1 . . . . . . . . . . . Secondary 3 | . . . 2 . . . . 1 . . . . . . . . . Self-Inflicted Damage 327 | . 104 . . . . . 93 . . . . . 48 . 82 . . Shots 6 | . 1 . . . . . 3 . . . . . 1 . 1 . . Rammed 26 | . 4 5 8 7 . 2 . . . . . . . . . . . Targets Rammed 30 | . 4 7 9 7 . 2 . . . . . . . . . . 1 Kicked 1 | . . . . . . . . . . . . . . . . . 1 Crushed 3 | . . 2 1 . . . . . . . . . . . . . . Highest Temperature 326 | 40 258 274 85 268 . 33 107 326 196 16 64 55 159 215 81 249 212 Average Temperature 59 | 24 76 74 28 95 . 15 39 90 76 12 44 24 29 112 28 43 74 Received Heat Transfer 1977 | . 186 318 45 151 . 448 39 62 27 . . 151 118 9 54 54 315 Effects 2 | . 1 . . . . . . 1 . . . . . . . . . Interference 2 | . 1 . . . . . . 1 . . . . . . . . . Siege Activations . | . . . . . . . . . . . . . . . . . . Martial Activations . | . . . . . . . . . . . . . . . . . . Shielding Activations 3 | . . . . . . . . . . . . . . . . . 3 Total Turns 31 | . . . . . . . . . . . . . . . . . 31 Longest Duration 15 | . . . . . . . . . . . . . . . . . 15 Robots Disrupted . | . . . . . . . . . . . . . . . . . . Combat Hostiles . | . . . . . . . . . . . . . . . . . . Robots Corrupted 18 | . . . . . . . 4 8 . . . . 2 . 1 2 1 Combat Hostiles 4 | . . . . . . . . 4 . . . . . . . . . Parts Fried 41 | . . . . . . . 13 16 . 4 . 2 2 1 . 2 1 Impact Corruptions 61 | . . . 1 . . . 14 17 . 3 . 2 6 3 4 9 2 Robots Melted 3 | . 1 . . . . . . 1 1 . . . . . . . . Combat Hostiles 2 | . . . . . . . . 1 1 . . . . . . . . Parts Melted 7 | . 4 . . . . 1 2 . . . . . . . . . . Heat Transferred 5202 | 150 1054 1258 . . . 927 888 555 296 . . . 74 . . . . Parts Sabotaged . | . . . . . . . . . . . . . . . . . . Parts Stolen . | . . . . . . . . . . . . . . . . . . Parts Stripped . | . . . . . . . . . . . . . . . . . . Power Chain Reactions 1 | . . . . . . . . . . . . . 1 . . . . Alert | -11 -10 -9 -9 -9 -9 -6 -5 -5 -5 -5 -5 -4 -3 -3 -2 -2 -2 ------- Run | Yrd Mat Mat Sto Rec Scr Fac Fac Ext Cet Arc Hub Fac Res Qua Res Tes Frg Maximum Alert Level 5 | . 1 1 1 . . 2 2 3 2 1 . 1 2 1 1 1 5 Low Security (%) 46 | 100 98 67 40 100 . 46 21 12 . 23 100 46 27 94 42 46 1 Level 1 34 | . 1 32 59 . . . 69 57 90 76 . 53 23 5 57 53 35 Level 2 8 | . . . . . . 53 9 14 9 . . . 48 . . . 6 Level 3 1 | . . . . . . . . 15 . . . . . . . . 5 Level 4 3 | . . . . . . . . . . . . . . . . . 26 Level 5 3 | . . . . . . . . . . . . . . . . . 25 High Security . | . . . . . . . . . . . . . . . . . . Max Security . | . . . . . . . . . . . . . . . . . . Peak Influence 1923 | 5 210 328 347 116 . 662 526 748 414 276 132 340 510 212 396 394 1923 Initial 392 | . . 21 74 101 . . 279 257 392 141 88 59 159 106 113 216 216 Average 328 | . 93 182 200 46 . 335 261 352 351 233 105 209 353 165 207 213 1004 Influence Increases 12026 | 15 513 945 872 440 . 1095 805 1047 346 183 64 832 659 166 743 652 2649 Destroy 0b10 Robot/C 4720 | . 260 600 420 240 . 520 160 500 160 80 . 120 . . . 100 1560 Destroy 0b10 Robot/NC 470 | 15 35 75 55 20 . 30 50 20 10 5 . 20 25 5 15 15 75 Destroy Leader 812 | . 70 174 140 . . 112 34 42 . . . 14 4 . . 10 212 Allied During Kill 766 | . . . 162 26 . 99 . 238 127 66 . 48 . . . . . Successful Hack 371 | . 17 30 44 15 . 25 40 4 . . . 25 48 66 41 . 16 Select Force Hacks 170 | . . . . 120 . . . . . . . . . . . 50 . Disable Machine 555 | . 45 . 45 . . 150 45 15 15 15 15 15 . 30 30 75 60 Destroy Structure 1207 | . 71 51 6 19 . 129 146 18 34 2 4 110 42 20 207 72 276 Partial Spotted 450 | . . . . . . . 45 120 . 15 . 75 60 . 45 60 30 Lose Combat Pursuer 2505 | . 15 15 . . . 30 285 90 . . 45 405 480 45 405 270 420 Influence Decreases 10117 | 15 462 818 790 636 64 524 850 873 692 283 196 649 774 154 559 652 1126 Entered New Map 2327 | . . 30 104 159 64 . 292 269 308 213 166 63 146 84 89 170 170 Time Decay 5297 | 15 452 638 486 374 . 374 518 334 214 50 30 286 278 70 310 222 646 Search Patrol Dispatched 200 | . . . . . . . . . . . . 100 . . 100 . . Lost Part 710 | . 10 . . 20 . 80 40 20 10 . . 10 50 . 50 110 310 Lost Ally 640 | . . . 200 40 . 70 . 100 160 20 . 40 . . 10 . . Purge Threat 943 | . . 150 . 43 . . . 150 . . . 150 300 . . 150 . Squads Dispatched 68 | . 2 3 2 . . 11 12 . . . 1 7 9 . 10 6 5 Investigation 25 | . 1 1 . . . 3 4 . . . . 3 6 . 5 1 1 Extermination 18 | . . . . . . 1 5 . . . . 2 2 . 3 4 1 Reinforcement 21 | . 1 2 2 . . 3 3 . . . 1 2 1 . 2 1 3 Assault 1 | . . . . . . 1 . . . . . . . . . . . Garrison 3 | . . . . . . 3 . . . . . . . . . . . Intercept . | . . . . . . . . . . . . . . . . . . Searches Triggered 2 | . . . . . . . . . . . . 1 . . 1 . . Construction Impeded 2 | . . . . . . 1 1 . . . . . . . . . . Haulers Reinforced 2 | . . . . . . . . . . . . 1 1 . . . . Active Scanning Responses . | . . . . . . . . . . . . . . . . . . Cargo Convoy Interrupts . | . . . . . . . . . . . . . . . . . . Stealth | -11 -10 -9 -9 -9 -9 -6 -5 -5 -5 -5 -5 -4 -3 -3 -2 -2 -2 --------- Run | Yrd Mat Mat Sto Rec Scr Fac Fac Ext Cet Arc Hub Fac Res Qua Res Tes Frg Distress Signals 50 | . 4 2 2 . . 2 2 2 2 . 2 2 8 1 7 1 13 Communications Jammed 58 | . . . . . . . . . 2 . . 1 1 3 25 19 7 Distress Signals 58 | . . . . . . . . . 2 . . 1 1 3 25 19 7 Times Spotted 660 | . 24 48 24 14 . 33 42 27 10 4 3 44 58 8 42 32 247 Peak Tracking Total 17 | . 3 5 4 3 . 6 9 5 5 2 6 11 16 6 11 12 17 Tactical Retreats 72 | . 1 1 . . . 1 10 4 . . 1 12 11 1 9 4 17 Traps | -11 -10 -9 -9 -9 -9 -6 -5 -5 -5 -5 -5 -4 -3 -3 -2 -2 -2 ------- Run | Yrd Mat Mat Sto Rec Scr Fac Fac Ext Cet Arc Hub Fac Res Qua Res Tes Frg Traps Triggered 26 | . 3 4 . . . . . 5 . . 1 2 2 1 3 5 . Indirectly . | . . . . . . . . . . . . . . . . . . Trap Hack Attempts . | . . . . . . . . . . . . . . . . . . Triggered . | . . . . . . . . . . . . . . . . . . Disarmed . | . . . . . . . . . . . . . . . . . . Reprogrammed . | . . . . . . . . . . . . . . . . . . Reused . | . . . . . . . . . . . . . . . . . . Traps Extracted . | . . . . . . . . . . . . . . . . . . Installed . | . . . . . . . . . . . . . . . . . . Triggered . | . . . . . . . . . . . . . . . . . . Machines | -11 -10 -9 -9 -9 -9 -6 -5 -5 -5 -5 -5 -4 -3 -3 -2 -2 -2 ---------- Run | Yrd Mat Mat Sto Rec Scr Fac Fac Ext Cet Arc Hub Fac Res Qua Res Tes Frg Machines Disabled 39 | . 4 . 3 . . 10 3 2 1 1 1 1 . 2 2 5 4 Max in Single Turn 2 | . 2 . 1 . . 2 1 . 1 . 1 1 . 1 1 1 1 Garrison Access 2 | . . . . . . . . . . . . 1 1 . . . . Machines Repaired . | . . . . . . . . . . . . . . . . . . Machines Dismantled . | . . . . . . . . . . . . . . . . . . Machines Sabotaged . | . . . . . . . . . . . . . . . . . . Overloaded Fab Kills . | . . . . . . . . . . . . . . . . . . Hacking | -11 -10 -9 -9 -9 -9 -6 -5 -5 -5 -5 -5 -4 -3 -3 -2 -2 -2 --------- Run | Yrd Mat Mat Sto Rec Scr Fac Fac Ext Cet Arc Hub Fac Res Qua Res Tes Frg Machines Accessed 139 | . 6 10 10 10 5 7 14 8 1 . 2 14 17 4 17 7 7 Terminals 91 | . 6 9 10 6 . 3 8 7 1 . 2 8 11 3 8 4 5 Fabricators 2 | . . . . . . . . . . . . . . . 1 1 . Repair Stations 1 | . . . . . . . . . . . . . 1 . . . . Recycling Units 26 | . . . . 4 . 3 5 1 . . . 3 4 . 5 . 1 Scanalyzers 9 | . . 1 . . . 1 1 . . . . 1 1 1 1 1 1 Garrison Access 5 | . . . . . . . . . . . . 2 . . 2 1 . Total Hacks 321 | . 22 42 31 19 24 17 25 15 2 . 4 29 27 6 29 12 17 Successful 172 | . 12 24 15 15 24 15 9 8 . . . 14 10 4 11 3 8 Failed 148 | . 10 17 16 4 . 2 16 7 2 . 4 15 17 2 18 9 9 Catastrophic 21 | . . 2 . . . . 2 . . . . 5 4 . 6 1 1 Database Lockouts 1 | . . 1 . . . . . . . . . . . . . . . Manual 179 | . 19 25 18 15 . 12 15 6 1 . 4 19 10 4 17 4 10 Terminals 231 | . 22 38 31 15 . 12 16 13 2 . 4 19 20 5 14 8 12 Fabricators 2 | . . . . . . . . . . . . . . . 1 1 . Repair Stations 1 | . . . . . . . . . . . . . 1 . . . . Recycling Units 36 | . . . . 4 . 3 7 2 . . . 6 4 . 8 . 2 Scanalyzers 22 | . . 4 . . . 2 2 . . . . 2 2 1 4 2 3 Garrison Access 5 | . . . . . . . . . . . . 2 . . 2 1 . Terminal Hacks 74 | . 3 10 8 3 24 4 1 6 . . . 5 5 2 1 1 1 Record 18 | . . . . . 17 . . . . . . . . 1 . . . Robot Analysis 10 | . 2 1 . . 7 . . . . . . . . . . . . Prototype ID Bank 4 | . . 2 1 . . 1 . . . . . . . . . . . Open Door 7 | . . . 4 . . . . 3 . . . . . . . . . Level Access Points 2 | . . . . . . . . . . . . . 1 1 . . . Branch Access Points 5 | . . 1 . . . 1 1 . . . . 1 1 . . . . Terminal Index 2 | . . 1 . . . . . . . . . 1 . . . . . Alert Level 10 | . . 3 . 1 . 1 . 2 . . . 1 1 . . . 1 Unreport Threat 7 | . . 1 . 1 . . . 1 . . . 1 2 . . 1 . Locate Traps 3 | . 1 . 2 . . . . . . . . . . . . . . Hauler Manifests 3 | . . 1 1 . . 1 . . . . . . . . . . . Zone Layout 3 | . . . . 1 . . . . . . . 1 . . 1 . . Fabricator Hacks . | . . . . . . . . . . . . . . . . . . Repair Station Hacks . | . . . . . . . . . . . . . . . . . . Recycling Unit Hacks . | . . . . . . . . . . . . . . . . . . Scanalyzer 14 | . . 4 . . . 2 1 . . . . 2 . . 2 . 3 Retrieve Study 14 | . . 4 . . . 2 1 . . . . 2 . . 2 . 3 Garrison Access Hacks 1 | . . . . . . . . . . . . 1 . . . . . Seal Access 1 | . . . . . . . . . . . . 1 . . . . . Unauthorized Hacks 83 | . 9 10 7 12 . 9 7 2 . . . 6 5 2 8 2 4 Terminals 59 | . 9 10 7 8 . 6 3 2 . . . 3 1 2 4 1 3 Track 1 | . . . . . . . . . . . . . . . . . 1 Assimilate 2 | . . 1 . . . . . . . . . . . . 1 . . Botnet 29 | . 3 3 2 3 . 3 3 2 . . . 3 1 2 2 1 1 Operators 4 | . 1 1 . . . . . . . . . . . . 1 . 1 Skim 23 | . 5 5 5 5 . 3 . . . . . . . . . . . Fabricators 1 | . . . . . . . . . . . . . . . . 1 . Overload 1 | . . . . . . . . . . . . . . . . 1 . Repair Stations . | . . . . . . . . . . . . . . . . . . Recycling Units 23 | . . . . 4 . 3 4 . . . . 3 4 . 4 . 1 Tunnel 4 | . . . . 4 . . . . . . . . . . . . . Fedlink 19 | . . . . . . 3 4 . . . . 3 4 . 4 . 1 Scanalyzers . | . . . . . . . . . . . . . . . . . . Garrison Access . | . . . . . . . . . . . . . . . . . . Data Cores Recovered 7 | . 1 1 1 . . . . 1 . . . . . . 2 1 . Used 3 | . 1 . 1 . . . . . . . . . . . 1 . . Hacking Detections 106 | . 6 9 7 5 . 4 10 7 1 . 2 11 13 4 14 6 7 Full Trace Events 3 | . . 1 . . . . . . . . . . 1 . 1 . . Feedback Events 1 | . . . . . . . . . . . . . . . 1 . . Corruption 1 | . . . . . . . . . . . . . . . 1 . . Feedback Blocked . | . . . . . . . . . . . . . . . . . . Robot Schematics Acquired . | . . . . . . . . . . . . . . . . . . Robots Built . | . . . . . . . . . . . . . . . . . . Authchips . | . . . . . . . . . . . . . . . . . . Time . | . . . . . . . . . . . . . . . . . . Total Robot Build Rating . | . . . . . . . . . . . . . . . . . . Part Schematics Acquired . | . . . . . . . . . . . . . . . . . . Parts Built . | . . . . . . . . . . . . . . . . . . Authchips . | . . . . . . . . . . . . . . . . . . Time . | . . . . . . . . . . . . . . . . . . Total Part Build Rating . | . . . . . . . . . . . . . . . . . . Part Studies Acquired 14 | . . 4 . . . 2 1 . . . . 2 . . 2 . 3 Parts Repaired . | . . . . . . . . . . . . . . . . . . Time . | . . . . . . . . . . . . . . . . . . Parts Recycled . | . . . . . . . . . . . . . . . . . . Recycled Matter . | . . . . . . . . . . . . . . . . . . Retrieved Matter . | . . . . . . . . . . . . . . . . . . Retrieved Components . | . . . . . . . . . . . . . . . . . . Parts Scanalyzed . | . . . . . . . . . . . . . . . . . . Part Schematics Acquired . | . . . . . . . . . . . . . . . . . . Parts Damaged . | . . . . . . . . . . . . . . . . . . Bothacking | -11 -10 -9 -9 -9 -9 -6 -5 -5 -5 -5 -5 -4 -3 -3 -2 -2 -2 ------------ Run | Yrd Mat Mat Sto Rec Scr Fac Fac Ext Cet Arc Hub Fac Res Qua Res Tes Frg Used RIF Installer . | . . . . . . . . . . . . . . . . . . Robots Hacked . | . . . . . . . . . . . . . . . . . . Non-combat . | . . . . . . . . . . . . . . . . . . Combat . | . . . . . . . . . . . . . . . . . . Robot Hacks Applied . | . . . . . . . . . . . . . . . . . . Relay Couplers Released . | . . . . . . . . . . . . . . . . . . Fabnet Peak Effective % . | . . . . . . . . . . . . . . . . . . Robots Rewired 36 | . . . . 26 . . . 10 . . . . . . . . . Allies Hacked 1 | . . . . . . 1 . . . . . . . . . . . Hacks Repelled . | . . . . . . . . . . . . . . . . . . Allies | -11 -10 -9 -9 -9 -9 -6 -5 -5 -5 -5 -5 -4 -3 -3 -2 -2 -2 -------- Run | Yrd Mat Mat Sto Rec Scr Fac Fac Ext Cet Arc Hub Fac Res Qua Res Tes Frg Total Allies 56 | . . . 10 26 . . . 14 5 . . . . . 1 . . Largest Group 19 | . . . 10 19 19 19 . 10 9 5 3 3 . . 1 . . Highest-Rated Group 743 | . . . 88 282 282 282 . 450 743 479 281 281 . . 10 . . Highest-Rated Ally 159 | . . . 16 34 34 34 . 159 159 159 96 96 . . 10 . . Total Orders 3 | . . . . . 2 . . . 1 . . . . . . . . STAY 1 | . . . . . 1 . . . . . . . . . . . . ROAM 1 | . . . . . . . . . 1 . . . . . . . . FOLLOW 1 | . . . . . 1 . . . . . . . . . . . . Ally Attacks 341 | . . . 97 10 . 35 . 91 73 14 1 20 . . . . . Total Damage 10152 | . . . 840 325 . 2662 . 2161 2440 468 . 1256 . . . . . Kills 78 | . . . 15 4 . 30 . 13 7 4 . 5 . . . . . Allies Corrupted . | . . . . . . . . . . . . . . . . . . Allies Melted . | . . . . . . . . . . . . . . . . . . Intel | -11 -10 -9 -9 -9 -9 -6 -5 -5 -5 -5 -5 -4 -3 -3 -2 -2 -2 ------- Run | Yrd Mat Mat Sto Rec Scr Fac Fac Ext Cet Arc Hub Fac Res Qua Res Tes Frg Active Infowar (turns) 10656 | 32 1349 511 . . . 1178 1439 728 459 102 66 624 506 145 695 472 2350 Optics 2463 | . . . . . . . . . . . . . . . . 113 2350 Sensors 4511 | . . . . . . 1025 1352 20 . . 55 455 248 145 664 472 75 Traps 3805 | . . . . . . 1066 1439 728 459 102 11 . . . . . . Seismic 1892 | 32 1349 511 . . . . . . . . . . . . . . . Cloaking 152 | . . . . . . . . . . . . . . . 84 68 . Jamming 3976 | . . . . . . . 528 728 384 . . 604 258 141 695 459 179 Robot Analysis Total 10 | . 2 1 . . 7 . . . . . . . . . . . . Derelict Logs Recovered . | . . . . . . . . . . . . . . . . . . Drone Launches . | . . . . . . . . . . . . . . . . . . Drone Recoveries . | . . . . . . . . . . . . . . . . . . Exploration | -11 -10 -9 -9 -9 -9 -6 -5 -5 -5 -5 -5 -4 -3 -3 -2 -2 -2 ------------- Run | Yrd Mat Mat Sto Rec Scr Fac Fac Ext Cet Arc Hub Fac Res Qua Res Tes Frg Turns Passed 17618 | 160 1693 2273 1275 1217 2077 1210 1439 748 459 102 66 624 608 145 695 477 2350 Spaces Moved 17130 | 69 683 1060 667 580 1208 604 1842 1073 352 124 129 1490 1761 324 1785 1173 2206 Core 3 | 2 . . . . . . . . . . . . . . . 1 . Treads 4885 | 67 683 1060 667 580 1208 604 16 . . . . . . . . . . Legs 1006 | . . . . . . . . . . . . . . . . . 1006 Wheels 575 | . . . . . . . 575 . . . . . . . . . . Hover . | . . . . . . . . . . . . . . . . . . Flight 10661 | . . . . . . . 1251 1073 352 124 129 1490 1761 324 1785 1172 1200 Fastest Speed 19 | 50 160 160 160 160 155 160 21 28 28 28 28 26 19 27 23 23 31 Average Speed 75 | 156 173 169 160 160 159 171 54 28 28 28 28 28 26 27 26 27 71 Slowest Speed 350 | 160 240 240 160 160 160 240 213 103 28 28 28 32 106 27 97 350 180 Overloaded Moves 498 | . . . . . . . 10 . . . . 59 42 . 353 34 . Propulsion Burnouts . | . . . . . . . . . . . . . . . . . . Robots Hopped 150 | . . . . . . . 7 14 . . . 13 38 9 39 14 16 Potential Cave-ins 18 | . . . . . . . 2 . . . . . . . . . 16 Cave-ins Triggered 1 | . . . . . . . . . . . . . . . . 1 . Exploration Rate (%) 61 | 6 97 91 93 93 62 18 49 88 66 77 14 47 57 51 49 93 50 Regions Visited 17 Branch Regions 10 Pre-discovered Areas 13 | . . 3 2 7 . 1 . . . . . . . . . . . Known Exits Taken 13 | . . 1 1 1 . 1 1 1 1 1 1 1 1 1 1 . . Unknown Exits Taken 4 | 1 1 . . . 1 . . . . . . . . . . 1 . Scrap Searched 1 | . . . . . 1 . . . . . . . . . . . . Spaces Dug 261 | . 10 31 3 . . 1 49 1 . . 1 26 17 9 71 25 17 Terrain Destroyed 549 | . 72 51 5 2 . 39 83 3 . . 1 28 26 10 74 25 130 Melee 98 | . . 2 3 . . 1 40 . . . 1 14 9 3 6 11 8 Projectile 232 | . . 1 2 2 . 1 13 3 . . . 14 15 7 40 14 120 AOE 217 | . 72 48 . . . 37 30 . . . . . 2 . 28 . . Terrain Rammed . | . . . . . . . . . . . . . . . . . . Walls Destroyed . | . . . . . . . . . . . . . . . . . . Machines Disabled . | . . . . . . . . . . . . . . . . . . Actions | -11 -10 -9 -9 -9 -9 -6 -5 -5 -5 -5 -5 -4 -3 -3 -2 -2 -2 --------- Run | Yrd Mat Mat Sto Rec Scr Fac Fac Ext Cet Arc Hub Fac Res Qua Res Tes Frg Total 20245 | 94 1107 1343 785 807 1359 706 2092 1445 690 185 153 1600 1804 349 1907 1260 2559 Wait 1507 | 3 321 71 46 22 134 30 72 210 309 58 22 61 12 . 71 20 45 Move 16831 | 68 682 1059 666 579 1207 603 1830 1044 351 123 128 1464 1688 306 1709 1145 2179 Hop 132 | . . . . . . . 4 14 . . . 12 34 8 36 13 11 Pick Up 130 | 2 22 26 4 2 3 11 19 4 4 . . 3 8 4 3 4 11 Fast Attach 106 | 7 1 1 . . . 2 8 2 . . . 3 11 3 15 11 42 Attach 71 | . 1 2 . 2 . 9 8 2 1 . . 4 6 1 5 10 20 Detach 34 | . . 1 . . . . 1 1 . . . 1 3 . 3 10 14 Swap 153 | 1 17 33 12 2 7 14 29 4 6 1 1 5 3 2 5 . 11 Drop 151 | . 11 32 5 2 8 1 24 3 3 . . 6 10 9 8 7 22 Fire 640 | 13 48 108 32 29 . 33 41 18 16 2 . 23 16 10 42 19 190 Melee 165 | . . 3 11 . . 1 56 16 . 1 2 18 13 6 10 15 13 Ram . | . . . . . . . . . . . . . . . . . . Kick 1 | . . . . . . . . . . . . . . . . . 1 Crush 29 | . 4 7 9 7 . 2 . . . . . . . . . . . Escape Stasis 65 | . . . . . . . . 59 . . . . . . . 6 . Rewire 230 | . . . . 162 . . . 68 . . . . . . . . . Trap . | . . . . . . . . . . . . . . . . . . Miscellaneous . | . . . . . . . . . . . . . . . . . . Route ------- -11/Scrapyard -10/Materials (discovered 6 exits: *Mat x3 / [*Min x2] / Sub) -9/Materials (discovered 6 exits: *Mat x3 / *Min / *Sto x2) -9/Storage (discovered 2 exits: *Mat / *Rec) -9/Recycling (discovered 2 exits: *Fac / *Scr) -9/Scraptown (discovered 2 exits: *Fac x2) -6/Factory (discovered 3 exits: *Fac / Low x2) -5/Factory (discovered 5 exits: *Fac / Upp x2 / *Ext x2) -5/Extension (discovered 2 exits: *Fac / *Cet) -5/Cetus (discovered 2 exits: *Fac / *Arc) -5/Archives (discovered 2 exits: *Fac / *Hub) -5/Hub_04(d) -4/Factory (discovered 4 exits: *Res x2 / *Upp x2) -3/Research (discovered 6 exits: *Res x3 / Arm / *Qua x2) -3/Quarantine -2/Research (discovered 4 exits: *Acc x2 / *Tes x2) -2/Testing (discovered 3 exits: *Acc / [*Sec] / *Frg) -2/Protoforge History --------- Turn | Location | Event 6 | -11/Scrapyard | Discovered new exit (range 15) 161 | -11/Scrapyard | Entered Materials 184 | -10/Materials | Discovered new exit (range 15) 318 | -10/Materials | Build established: Mutant 572 | -10/Materials | Discovered new exit (range 11) 804 | -10/Materials | Discovered new exit (range 12) 988 | -10/Materials | Discovered new exit (range 16) 1155 | -10/Materials | Discovered new exit (range 16) 1387 | -10/Materials | Identified exit to Subcaves 1519 | -10/Materials | Learned Storage trap positions 1570 | -10/Materials | Learned Storage non-interactive machine intel 1610 | -10/Materials | Learned Materials emergency access door positions 1641 | -10/Materials | Learned 2 Storage zone layouts 1689 | -10/Materials | Learned Storage security intel 1726 | -10/Materials | Learned location of 2 exits from Subcaves 1771 | -10/Materials | Learned Materials emergency access door positions 1826 | -10/Materials | Learned 4 Subcaves zone layouts 1854 | -10/Materials | Entered another Materials area 1854 | -9/Materials | Evolved 2 slots: Propulsion x1, Utility x1 2167 | -9/Materials | Discovered new exit (range 14) 2433 | -9/Materials | Discovered new exit (range 15) 2820 | -9/Materials | Build established: Scavenger-Mutant 2884 | -9/Materials | Discovered new exit (range 9) 3263 | -9/Materials | Discovered new exit (range 5) 3529 | -9/Materials | Identified exit to Mines 3551 | -9/Materials | Discovered new exit (range 15) 3584 | -9/Materials | Learned Storage stockpile data 3594 | -9/Materials | Learned location of 1 exit from Recycling 3596 | -9/Materials | Learned Storage trap positions 3597 | -9/Materials | Identified exit to Materials 3598 | -9/Materials | Learned location of Zion (-6) 3862 | -9/Materials | Identified exit to Storage 3957 | -9/Materials | Central database locked down 4127 | -9/Materials | Entered Storage 4129 | -9/Storage | Loaded intel: 8 trap records 4132 | -9/Storage | Loaded intel: 18 non-interactive machine locations 4321 | -9/Storage | Assisted by bots powering up and referring to "LRC-V3" 4628 | -9/Storage | Build established: Commander-Mutant 4825 | -9/Storage | Lost 4 allies 4858 | -9/Storage | Learned location of 1 exit from Recycling 4878 | -9/Storage | Learned 2 Materials zone layouts 4890 | -9/Storage | Learned Materials emergency access door positions 4894 | -9/Storage | Identified exit to Recycling 4896 | -9/Storage | Learned Materials recycling unit intel 5074 | -9/Storage | Lost 3 allies 5139 | -9/Storage | Build established: Mutant 5395 | -9/Storage | Used back door to open Recycling access 5402 | -9/Storage | Entered Recycling 5403 | -9/Recycling | Identified exit to Factory 5403 | -9/Recycling | Identified exit to Scraptown 5851 | -9/Recycling | Learned location of 1 exit from Storage 5979 | -9/Recycling | Learned Materials stockpile data 6004 | -9/Recycling | Build established: Commander-Mutant 6026 | -9/Recycling | Learned Storage emergency access door positions 6061 | -9/Recycling | Learned Storage terminal intel 6084 | -9/Recycling | Learned Materials trap positions 6122 | -9/Recycling | Learned 2 Storage zone layouts 6155 | -9/Recycling | Learned location of 1 exit from Recycling 6196 | -9/Recycling | Learned 4 Materials zone layouts 6214 | -9/Recycling | P-60 Hacker assimilated allied Mercenary 2j 6215 | -9/Recycling | P-60 Hacker assimilated allied Commando 2a 6286 | -9/Recycling | Lost 3 allies 6558 | -9/Recycling | Scanned before Scraplab entrance 6580 | -9/Recycling | Entered Scraplab 6619 | -9/Recycling | Entered Scraptown 6619 | -9/Scraptown | Accompanied by 19 allies 6619 | -9/Scraptown | System corruption cleaned by C-Scrubber 6720 | -9/Scraptown | Visited UFD Registry 6720 | -9/Scraptown | Registered with UFD as "Dataninja" 6903 | -9/Scraptown | Visited Chapter 10 6954 | -9/Scraptown | Visited LU-1G1's Boring Crew 7058 | -9/Scraptown | Visited Analyses Database 7093 | -9/Scraptown | Visited Modified Component R&D 7192 | -9/Scraptown | Visited Abandonware Association 7207 | -9/Scraptown | Learned abandonware demo "OVRCLOCK.EXE" 7243 | -9/Scraptown | Visited Scrapoid Pod Storage 7287 | -9/Scraptown | Visited Botcube Research 7320 | -9/Scraptown | Visited Derelict Rescue Squad 7359 | -9/Scraptown | Visited Curators Association 7434 | -9/Scraptown | Visited Junk Repository 7542 | -9/Scraptown | Visited Symbiants 7555 | -9/Scraptown | Visited Cyclists 7566 | -9/Scraptown | Entered Cyclist Reading Room 7612 | -9/Scraptown | Visited The Evicted 7635 | -9/Scraptown | Visited Spacefarers 7668 | -9/Scraptown | Visited Junk Repository 7756 | -9/Scraptown | Visited Supply Room 7804 | -9/Scraptown | Visited Assassins FH 7957 | -9/Scraptown | Discovered new exit (range 13) 8437 | -9/Scraptown | Met Optimus 8437 | -9/Scraptown | Accepted into 0bPrime 8533 | -9/Scraptown | Discovered new exit (range 3) 8696 | -9/Scraptown | Entered Factory 8696 | -6/Factory | Accompanied by 19 allies 8696 | -6/Factory | Evolved 6 slots: Propulsion x3, Utility x3 8930 | -6/Factory | Loaded intel: 8 recycling unit locations 9140 | -6/Factory | Build established: Commander-Skirmisher 9246 | -6/Factory | Garrison activated, responded to threat 9288 | -6/Factory | Lost 10 allies 9329 | -6/Factory | Lost 3 allies 9333 | -6/Factory | Discovered new exit (range 13) 9395 | -6/Factory | Lost 6 parts (1p3n2w) 9401 | -6/Factory | Destroyed 7 combat bots 9494 | -6/Factory | Identified exit to Lower Caves 9746 | -6/Factory | First assault squad dispatched 9772 | -6/Factory | Build established: Skirmisher 9826 | -6/Factory | Learned location of Protoforge (-2) 9904 | -6/Factory | Identified exit to Factory 9906 | -6/Factory | Entered another Factory area 9906 | -5/Factory | Evolved 2 slots: Power x1, Utility x1 10779 | -5/Factory | Loaded intel: 8 recycling unit locations 11045 | -5/Factory | Discovered new exit (range 12) 11105 | -5/Factory | Build established: Ninja 11293 | -5/Factory | Identified exit to Upper Caves 11293 | -5/Factory | Identified exit to Extension 11345 | -5/Factory | Entered Extension 11370 | -5/Extension | Rescued A7 11447 | -5/Extension | Rescued a captive Derelict 11626 | -5/Extension | Spotted B-75 Beast 11717 | -5/Extension | Destroyed B-75 Beast 11720 | -5/Extension | Spotted B-75 Beast 11724 | -5/Extension | Allies destroyed B-75 Beast 11745 | -5/Extension | Lost 4 allies 11840 | -5/Extension | Rescued a captive Derelict 11844 | -5/Extension | Rescued a captive Derelict 12006 | -5/Extension | Discovered new exit (range 10) 12006 | -5/Extension | Discovered new exit (range 5) 12010 | -5/Extension | Identified exit to Factory 12011 | -5/Extension | Identified exit to Cetus 12093 | -5/Extension | Entered Cetus 12093 | -5/Cetus | Accompanied by 9 allies (A7) 12098 | -5/Cetus | Acquired a Cetus Manufacturing Module code from A7 12125 | -5/Cetus | Spotted Cetus Guard 12126 | -5/Cetus | Spotted Cetus Guard 12127 | -5/Cetus | Allies destroyed Cetus Guard 12127 | -5/Cetus | Spotted Cetus Guard 12128 | -5/Cetus | Spotted Cetus Guard 12139 | -5/Cetus | Allies destroyed Cetus Guard 12150 | -5/Cetus | Allies destroyed Cetus Guard 12151 | -5/Cetus | Destroyed Cetus Guard 12175 | -5/Cetus | Started Cetus Manufacturing Module 12176 | -5/Cetus | Lost 5 allies 12200 | -5/Cetus | Manufactured an Enhanced Grunt 12225 | -5/Cetus | Manufactured an Enhanced Grunt 12250 | -5/Cetus | Manufactured an Enhanced Grunt 12275 | -5/Cetus | Manufactured an Enhanced Grunt 12300 | -5/Cetus | Manufactured an Enhanced Grunt 12347 | -5/Cetus | Discovered new exit (range 15) 12420 | -5/Cetus | Spotted Cetus Guard 12421 | -5/Cetus | Spotted Cetus Guard 12426 | -5/Cetus | Spotted Cetus Guard 12426 | -5/Cetus | Spotted Cetus Guard 12432 | -5/Cetus | Allies destroyed Cetus Guard 12438 | -5/Cetus | Allies destroyed Cetus Guard 12448 | -5/Cetus | Destroyed Cetus Guard 12453 | -5/Cetus | Destroyed Cetus Guard 12462 | -5/Cetus | Discovered exit to Factory (range 15) 12464 | -5/Cetus | Met Revision 17 12465 | -5/Cetus | Lost 4 allies 12489 | -5/Cetus | Escorted A7 to Cetus Mainframe 12501 | -5/Cetus | Identified exit to Archives 12552 | -5/Cetus | Entered Archives 12552 | -5/Archives | Accompanied by 5 allies (A7) 12557 | -5/Archives | Received a hacking code to weaken MAIN.C 12605 | -5/Archives | Discovered exit to Factory (range 14) 12610 | -5/Archives | Unable to access archive contents 12612 | -5/Archives | Discovered new exit (range 15) 12619 | -5/Archives | Identified exit to Hub_04(d) 12654 | -5/Archives | Entered Hub_04(d) 12654 | -5/Hub_04(d) | Accompanied by 3 allies 12687 | -5/Hub_04(d) | Discovered exit to Factory (range 8) 12720 | -5/Hub_04(d) | Entered Factory 12720 | -4/Factory | Accompanied by 3 allies 12720 | -4/Factory | Evolved 2 slots: Propulsion x1, Utility x1 12861 | -4/Factory | Discovered new exit (range 4) 12862 | -4/Factory | Identified exit to Upper Caves 12867 | -4/Factory | Build established: Sprinter 13069 | -4/Factory | Discovered exit to Upper Caves (range 8) 13140 | -4/Factory | Discovered new exit (range 6) 13143 | -4/Factory | Identified exit to Research 13220 | -4/Factory | Search patrols dispatched 13225 | -4/Factory | Spotted B-86 Titan 13227 | -4/Factory | Loaded intel: 8 recycling unit locations 13283 | -4/Factory | Discovered exit to Research (range 14) 13344 | -4/Factory | Entered Research 13344 | -3/Research | Evolved 2 slots: Propulsion x1, Weapon x1 13351 | -3/Research | Found Gamma Bomb Array 13371 | -3/Research | Discovered new exit (range 15) 13375 | -3/Research | Identified exit to Research 13388 | -3/Research | Spotted B-86 Titan 13397 | -3/Research | Loaded intel: 4 recycling unit locations 13504 | -3/Research | Discovered exit to Research (range 15) 13544 | -3/Research | Revision forces began assault on 0b10 13550 | -3/Research | Spotted B-86 Titan 13559 | -3/Research | Lost 3 parts (2n1w) 13563 | -3/Research | Identified exit to Armory 13563 | -3/Research | Identified exit to Quarantine 13688 | -3/Research | Met up with Revision 17++ 13952 | -3/Research | Entered Quarantine 14020 | -3/Quarantine | Found Alien Energy Cannon 14020 | -3/Quarantine | Identified Core Cannon 14080 | -3/Quarantine | Found Alien Artifact 14097 | -3/Quarantine | Build established: Scavenger-Sprinter 14097 | -3/Quarantine | Entered Research 14097 | -2/Research | Evolved 2 slots: Utility x1, Weapon x1 14097 | -2/Research | Identified Subatomic Replicator 14171 | -2/Research | Discovered new exit (range 7) 14172 | -2/Research | Identified exit to Access 14249 | -2/Research | Spotted B-90 Cyclops 14290 | -2/Research | Loaded intel: 5 recycling unit locations 14597 | -2/Research | Search patrols dispatched 14602 | -2/Research | Spotted B-90 Cyclops 14694 | -2/Research | Discovered new exit (range 6) 14695 | -2/Research | Build established: Scientist-Sprinter 14696 | -2/Research | Identified exit to Testing 14724 | -2/Research | Discovered exit to Access (range 16) 14748 | -2/Research | Discovered exit to Testing (range 14) 14792 | -2/Research | Entered Testing 14822 | -2/Testing | Lost 3 parts (1p2u) 14833 | -2/Testing | Spotted PX-WHM6IF4JO1 14837 | -2/Testing | Spotted Striker 14848 | -2/Testing | Found Prototype Energy Cannon 14848 | -2/Testing | Identified Disintegrator 14894 | -2/Testing | Found Prototype Launcher 14894 | -2/Testing | Identified Z-bomb Delivery System 14923 | -2/Testing | Found Prototype Ballistic Gun 14923 | -2/Testing | Identified Hyp. Multirail 14989 | -2/Testing | Found Prototype Device 14989 | -2/Testing | Identified Exp. EM Shield 14990 | -2/Testing | System corruption reached 10% 14991 | -2/Testing | Found Exp. EM Shield 14999 | -2/Testing | Discovered exit to Access (range 9) 15026 | -2/Testing | Lost 4 parts (1p1n1u1w) 15156 | -2/Testing | Found Prototype Processor 15156 | -2/Testing | Identified Spectral Analyzer 15199 | -2/Testing | Crushed by falling debris 15201 | -2/Testing | Used Subatomic Replicator to replicate Impulse Thruster Array+ 15230 | -2/Testing | Lost 3 parts (1n2u) 15246 | -2/Testing | Spotted Fortress 15267 | -2/Testing | Discovered new exit (range 5) 15267 | -2/Testing | Discovered new exit (range 6) 15269 | -2/Testing | Entered Protoforge 15340 | -2/Protoforge | Spotted AP7-3 15344 | -2/Protoforge | Spotted AP7-3 15347 | -2/Protoforge | Spotted Hotshot 15347 | -2/Protoforge | Spotted Hotshot 15356 | -2/Protoforge | Spotted Overlord 15363 | -2/Protoforge | Spotted EXE-6 15366 | -2/Protoforge | Superfortress began startup sequence 15366 | -2/Protoforge | Spotted Decapitator 15366 | -2/Protoforge | Spotted Decapitator 15367 | -2/Protoforge | Spotted EXE-6 15379 | -2/Protoforge | Lost 3 parts (1p2u) 15379 | -2/Protoforge | UFD initiated attack on Protoforge (Readiness: Maximal) 15379 | -2/Protoforge | Loaded intel: 3 recycling unit locations 15394 | -2/Protoforge | Spotted EXE-6 15399 | -2/Protoforge | Spotted EXE-6 15415 | -2/Protoforge | Optimus greeted in Protoforge 15422 | -2/Protoforge | Found Prototype Processor 15422 | -2/Protoforge | Identified Exp. Armor Integrity Analyzer 15434 | -2/Protoforge | Found Prototype Device 15434 | -2/Protoforge | Identified Exp. Kinecellerator 15440 | -2/Protoforge | Found Prototype Ballistic Gun 15440 | -2/Protoforge | Identified Cep. XC Strikerail 15445 | -2/Protoforge | Found Prototype Processor 15445 | -2/Protoforge | Identified Exp. Core Analyzer 15457 | -2/Protoforge | P-80 Master assimilated allied Lugger 341 15521 | -2/Protoforge | Found Cep. XC Strikerail 15562 | -2/Protoforge | Lost 19 allies 15621 | -2/Protoforge | Spotted Striker 15622 | -2/Protoforge | Spotted Striker 15648 | -2/Protoforge | UFD reported confirmed Drillbomb installation 15653 | -2/Protoforge | Found Scrap Suit 15668 | -2/Protoforge | Lost 4 allies 15706 | -2/Protoforge | P-80 Master assimilated allied 02F24-D 15723 | -2/Protoforge | Spotted Executioner 15730 | -2/Protoforge | Spotted Executioner 15731 | -2/Protoforge | Triborg destroyed during the operation 15731 | -2/Protoforge | Optimus emerged from Triborg 15744 | -2/Protoforge | Destroyed Executioner 15746 | -2/Protoforge | UFD reported confirmed Drillbomb installation 15871 | -2/Protoforge | Spotted Executioner 15872 | -2/Protoforge | Spotted Executioner 15891 | -2/Protoforge | Spotted Executioner 15892 | -2/Protoforge | Spotted Striker 15898 | -2/Protoforge | Build established: Scavenger-Gunner 15898 | -2/Protoforge | UFD reported confirmed Drillbomb installation 15938 | -2/Protoforge | Found Prototype Device 15938 | -2/Protoforge | Identified Adv. Kinecellerator 15938 | -2/Protoforge | Spotted Hotshot 15952 | -2/Protoforge | Destroyed Hotshot 15989 | -2/Protoforge | Spotted Executioner 15989 | -2/Protoforge | Spotted Striker 16003 | -2/Protoforge | Lost 7 allies 16017 | -2/Protoforge | Destroyed Striker 16147 | -2/Protoforge | Spotted Hotshot 16148 | -2/Protoforge | Spotted Hotshot 16151 | -2/Protoforge | Spotted Hotshot 16154 | -2/Protoforge | Destroyed Hotshot 16157 | -2/Protoforge | Destroyed Hotshot 16164 | -2/Protoforge | Destroyed Hotshot 16200 | -2/Protoforge | Spotted Executioner 16207 | -2/Protoforge | P-80 Master assimilated allied I9-TEW(E) 16209 | -2/Protoforge | Spotted Executioner 16213 | -2/Protoforge | Destroyed Executioner 16241 | -2/Protoforge | Spotted EXE-6 16248 | -2/Protoforge | Spotted Striker 16250 | -2/Protoforge | Spotted Striker 16252 | -2/Protoforge | Destroyed Striker 16256 | -2/Protoforge | Destroyed EXE-6 16260 | -2/Protoforge | Destroyed Striker 16267 | -2/Protoforge | Spotted Executioner 16267 | -2/Protoforge | Destroyed Executioner 16268 | -2/Protoforge | Spotted Striker 16271 | -2/Protoforge | Destroyed Striker 16274 | -2/Protoforge | Spotted Executioner 16276 | -2/Protoforge | Spotted Striker 16281 | -2/Protoforge | Destroyed Striker 16302 | -2/Protoforge | Lost 3 allies 16328 | -2/Protoforge | Spotted B-90 Cyclops 16331 | -2/Protoforge | Destroyed 21 combat bots 16331 | -2/Protoforge | Found Exp. Armor Integrity Analyzer 16343 | -2/Protoforge | Found Cep. XC Strikerail 16351 | -2/Protoforge | Spotted Executioner 16353 | -2/Protoforge | Spotted Executioner 16360 | -2/Protoforge | Spotted Striker 16361 | -2/Protoforge | Spotted Hotshot 16362 | -2/Protoforge | Spotted Hotshot 16363 | -2/Protoforge | Spotted Striker 16369 | -2/Protoforge | Spotted Striker 16376 | -2/Protoforge | Destroyed Hotshot 16376 | -2/Protoforge | Destroyed Striker 16398 | -2/Protoforge | Spotted Executioner 16413 | -2/Protoforge | Spotted Decapitator 16413 | -2/Protoforge | Spotted Decapitator 16414 | -2/Protoforge | Lost 10 allies 16414 | -2/Protoforge | Destroyed Hotshot 16414 | -2/Protoforge | Destroyed Executioner 16443 | -2/Protoforge | Spotted Executioner 16447 | -2/Protoforge | Destroyed 10 combat bots 16447 | -2/Protoforge | Lost 3 parts (1n1u1w) 16447 | -2/Protoforge | Spotted Striker 16448 | -2/Protoforge | Spotted Executioner 16451 | -2/Protoforge | Destroyed Striker 16455 | -2/Protoforge | Spotted Executioner 16458 | -2/Protoforge | Core integrity fell below 50% 16461 | -2/Protoforge | Spotted Executioner 16484 | -2/Protoforge | Spotted Hotshot 16489 | -2/Protoforge | Spotted Hotshot 16491 | -2/Protoforge | Spotted Hotshot 16497 | -2/Protoforge | Spotted Executioner 16503 | -2/Protoforge | Destroyed Hotshot 16504 | -2/Protoforge | Spotted Executioner 16524 | -2/Protoforge | Destroyed Hotshot 16524 | -2/Protoforge | Destroyed Hotshot 16525 | -2/Protoforge | Lost 8 allies 16528 | -2/Protoforge | Destroyed Executioner 16538 | -2/Protoforge | Destroyed Executioner 16544 | -2/Protoforge | Spotted Striker 16546 | -2/Protoforge | Spotted Striker 16559 | -2/Protoforge | Destroyed 9 combat bots 16564 | -2/Protoforge | Spotted Striker 16568 | -2/Protoforge | Spotted Executioner 16619 | -2/Protoforge | Spotted Executioner 16657 | -2/Protoforge | Lost 12 allies 16665 | -2/Protoforge | Found Scrap Suit 16825 | -2/Protoforge | Found Prototype Processor 16825 | -2/Protoforge | Identified Exp. Targeting Computer 17008 | -2/Protoforge | Spotted Striker 17020 | -2/Protoforge | Destroyed Striker 17026 | -2/Protoforge | UFD reported confirmed Drillbomb installation 17059 | -2/Protoforge | Spotted Executioner 17067 | -2/Protoforge | Destroyed Executioner 17107 | -2/Protoforge | Spotted Executioner 17107 | -2/Protoforge | Spotted Executioner 17109 | -2/Protoforge | Spotted Executioner 17165 | -2/Protoforge | Destroyed Executioner 17187 | -2/Protoforge | Core integrity fell below 20% 17189 | -2/Protoforge | Spotted Striker 17198 | -2/Protoforge | Spotted Striker 17210 | -2/Protoforge | Destroyed Striker 17252 | -2/Protoforge | Lost 3 allies 17258 | -2/Protoforge | Lost 16 parts (2p5n3u6w) 17273 | -2/Protoforge | Found UFD Drillbomb 17278 | -2/Protoforge | Spotted Striker 17280 | -2/Protoforge | Spotted Striker 17291 | -2/Protoforge | Spotted Executioner 17294 | -2/Protoforge | Spotted Executioner 17321 | -2/Protoforge | Lost 3 allies 17330 | -2/Protoforge | Destroyed 02F33-K 17349 | -2/Protoforge | P-80 Master assimilated allied 02FDB-D 17357 | -2/Protoforge | Spotted Striker 17391 | -2/Protoforge | Lost 9 allies 17465 | -2/Protoforge | Spotted Striker 17470 | -2/Protoforge | Spotted Striker 17485 | -2/Protoforge | Spotted Striker 17487 | -2/Protoforge | Spotted Striker 17503 | -2/Protoforge | Build established: Scavenger-Mutant 17520 | -2/Protoforge | Spotted Striker 17526 | -2/Protoforge | Lost 4 allies 17540 | -2/Protoforge | Spotted Striker 17542 | -2/Protoforge | Spotted Striker 17543 | -2/Protoforge | Spotted Striker 17602 | -2/Protoforge | Spotted Executioner 17607 | -2/Protoforge | Spotted Striker 17619 | -2/Protoforge | Destroyed by Striker with Compact Linear Accelerator Last Messages --------------- 17614_ 0bP_NET: Lugger 649 inbound, all units not involved in other operations escort to target. 17615_ 02F37-K cannibalizes Scrap Suit to repair Mak. Coolant Network. 17615_ Acquired 44 matter. 17615_ S-43 Plague destroyed. 17616_ N-04 Retriever collects Ovr. Huge Scrapsphere. 17616_ N-04 Retriever collects Ovr. Beamcaster. 17616_ N-04 Retriever collects Scrap Suit. 17616_ 02F37-K Med. Insulated Plating blown off. 17616_ E-15 Imp destroyed. 17617_ 02F37-K cannibalizes Med. Insulated Plating to repair Unknown Protection. 17617_ Slug penetrates 02F37-K. 17617_ Acquired Impulse Thruster Array+. 17617_ 02F37-K shuts down. 17617_ Slug penetrates 02F37-K. 17617_ 02F37-K destroyed. 17617_ Slug penetrates Pattern Transfigurator. 17618_ N-04 Retriever collects Unknown Ballistic Gun. 17618_ Acquired 10 matter. Map ----- +----------------------------------------------------+ | ???????????????????## ##?# """ """" | | ??????????########### ##?# "" | | ??????????##############;####?# " "" | | ??????????## ##### ##?# "" "" """" | | ###???????## ##?# " "" | | # ###?????## T ##?# " "" " " | | # # ###??## ##?# " " "" """" | | # # # #??## ##### ##?# "" | | # # [ ###### ######## ####?# "" " | | #"#"%#" "#### " """ ## ####?# """"" "" " | | %% " ## ##???# " " | | #"""#%=" ""## # ## "#???# " " "" " | | """"!##""""## # ## ##???# """"" " | | ! % ! #" ##+##### ;#???# " "" | | %!*"!"%" " [[;###?# """" " | | " " ""##### ##### ;# ### """" | | % = " % ; ## #; ;;###;;#;### " | | ==!==*% " ; ### # ;! =[ ## "" " | | =**%* ![][ ##; !!]!!%![ ## " | | !=!!%!*%=%![=;;;#;!#/%!!!!* ## " "" " | | ==%%n=%=%%pK%l =%[!%=%%* ## "" "" " "" | | %%% % %%%%h%&% %%%!=%%*[!* ;# "" "" % "" | | %%%%E%%%%%=% %= !*%[!%/=! "%## " " ! "" "" | | "%"; ;%/%*;;% ;=!!==!]!*! ## % "" " """ | | %=|!==[%%==;% % [*/=[%%!!!=## [ "" " """ | | !=[!===%*=%=; %%;!![==!=@;#"## % """ | | | ;; !!%!% &%%%;%&%%%% %;%#= % % """ | | #; [%[| % %% %% %%%%%%%%%%n % """ | | "# [=%=% % %%%%%%%%%%%% % % % """ | | #; %%[%% %! % %%%%%%% nn """ % " """ | | #;#####*!% ;!!!!!% %%%%;# n "" %=""" " """ | | ""#######;;;;;;;#;;!=!== ;!#&# %"" " """ | | #####???## % # !##|=!#!#* % % " "" | | ????????## %% ;!=! " = |### % "" | | ???????### % ;!m=*# # ## %%""%"%" "" "" | | ######## ; " #!*! ## # # """ "% " " | | ########"" """ ; ##### ## %" " | | ##! [ %+ """ ; " #??### % "" | | ## ##"#";; """ ; ###????# "" "" "" | | ## #### ## """ ; ##?????# "" "" " "" | | ## ### ### #######?????# "" """ "" | | ## ###""###"+;";#########?????# " " | | #" " ####??????????# " "" | | # ##????????????# " " """ | | " "#????????????# " """ | | # """ """ ##????????????# " "% | | # """ """ "#????????????# " " " | | = " """ """ "#????????????# " | | ! + """" """" ##????????????# " " " %"" | | ! # """" """" ##????????????# "" "" " " | +----------------------------------------------------+ Best States ------------- Heat Dissipation 80 Energy Generation 67 Energy Capacity 1350 Matter Stores 300 Matter Capacity 300 Sight Range 24 Robot Scan Range 16 Terrain Scan Density 10 Jamming Range 16 Cloak Strength 3 Power Amplification 30 EM Shielding 2 Armor Coverage 400 Resistance: EM 75 Core Shielding 10 Propulsion Shielding 66 Phase Shifting 15 Evasion (%) 79 Targeting Accuracy 12 Core Analysis 8 Armor Integrity Analysis 50 Recoil Reduction 6 Particle Charging 25 Kinecelleration 66 Salvage Targeting 4 Offensive Hacking 12 Item Schematics ----------------- None Robot Schematics ------------------ None Fabricated ------------ Nothing Repaired ---------- Nothing Studied --------- Hvy. Assault Rifle | -9/Materials | Hacked Lgt. Treads | -9/Materials | Hacked Imp. Light Cannon | -9/Materials | Hacked Rocket Launcher | -9/Materials | Hacked Nuclear Pulse Thruster | -6/Factory | Hacked Lgt. Deuterium Engine | -6/Factory | Hacked Nuclear Pulse Array | -5/Factory | Hacked Field Propulsion Array | -4/Factory | Hacked Mic. Fission Core | -4/Factory | Hacked Impulse Thruster Array | -2/Research | Hacked Mic. Antimatter Reactor | -2/Research | Hacked Myomer Leg | -2/Protoforge | Hacked Biometal Leg | -2/Protoforge | Hacked Hyb. Antimatter Reactor | -2/Protoforge | Hacked Alien Tech Used ----------------- Core Cannon Subatomic Replicator Achievements -------------- Bob, First Of His Name Physics Protects Challenges ------------ None Game ------ Seed NetworkRagnarokUnit Manual? 0 Play Time 04:14:12 Cumulative 245.9 hours Start 2025.11.24 @ 21:15:57 End 2025.11.26 @ 20:07:53 Sessions 3 Manual Loads 0 Difficulty Rogue Special Mode None Game No. 185 Rogue 185 Adventurer 0 Explorer 0 Win Type - Total 6 Types 4/0/0/2/0/0/0/0/0/0 Lore% 76 Gallery% 70 Achievement% 55 Wizard Run 0 Options --------- Layout 0 ASCII 0 Keyboard 1 Movement Numpad Keybinds 0 Fullscreen 1 Font 24/Terminus Map View 76x50 Zoom Use 0% Tactical HUD 1 Map Filters NONE Filters NONE Steam 1 RUN: d5333a26-4895-40a6-b109-f5997b7bf342